bitfinex-derivatives/quotes_BTCF0:USTF0_20251217
["timestamp","ask_amount","ask_price","bid_price","bid_amount"]
[1765967537016,0.34469,86648.0,86647.0,0.2052]
[1765967538214,0.34569,86648.0,86647.0,0.2052]
[1765967538512,0.005,86648.0,86647.0,0.2052]
[1765967538908,0.002,86648.0,86647.0,0.2052]
[1765967539102,0.004,86648.0,86647.0,0.2052]
[1765967539499,0.002,86648.0,86647.0,0.2052]
[1765967539899,0.004,86648.0,86647.0,0.2052]
[1765967542009,0.004,86648.0,86647.0,0.566]
[1765967543719,0.00017318,86656.0,86655.0,0.1919837]
[1765967544019,0.00017318,86656.0,86655.0,0.5527837]
[1765967544906,0.00617318,86656.0,86655.0,0.5527837]
[1765967547316,0.26637318,86656.0,86655.0,0.5527837]
[1765967548917,0.13898318,86656.0,86655.0,0.5527837]
[1765967550319,0.00617318,86656.0,86655.0,0.5527837]
[1765967550618,0.08149,86680.0,86672.0,0.1637]
[1765967550805,0.2143,86674.0,86673.0,0.1752413]
[1765967551120,0.34169,86674.0,86673.0,0.1752413]
[1765967552022,0.34669,86674.0,86673.0,0.1752413]
[1765967552223,0.34669,86674.0,86673.0,0.1637]
[1765967554517,0.35069,86674.0,86673.0,0.1637]
[1765967556010,0.0873821,86667.0,86666.0,0.0115422]
[1765967556215,0.3297121,86667.0,86666.0,0.0879322]
[1765967556422,0.31817,86667.0,86666.0,0.0879322]
[1765967557023,0.32117,86667.0,86666.0,0.1655222]
[1765967557417,0.07884,86667.0,86666.0,0.1655222]
[1765967557608,0.006,86667.0,86666.0,0.1655222]
[1765967557807,0.08149,86680.0,86679.0,0.1604505]
[1765967558217,0.20625,86680.0,86679.0,0.1604505]
[1765967558420,0.32404,86680.0,86679.0,0.1604505]
[1765967559429,0.32804,86680.0,86679.0,0.1604505]
[1765967560121,0.32504,86680.0,86679.0,0.1604505]
[1765967560331,0.32904,86680.0,86679.0,0.1604505]
[1765967560713,0.08649,86680.0,86679.0,0.1604505]
[1765967561029,0.31719,86680.0,86679.0,0.1604505]
[1765967563323,0.31719,86680.0,86679.0,0.19177825]
[1765967563524,0.31719,86680.0,86679.0,0.0115405]
[1765967563725,0.3267313,86674.0,86673.0,0.0115412]
[1765967563929,0.31519,86674.0,86673.0,0.17895445]
[1765967565520,0.31619,86674.0,86673.0,0.17895445]
[1765967567026,0.31619,86674.0,86673.0,0.04287445]
[1765967567820,0.31619,86674.0,86673.0,0.10542445]
[1765967568426,0.31619,86674.0,86673.0,0.03133325]
[1765967568729,0.31619,86674.0,86673.0,0.04287455]
[1765967569916,0.31619,86674.0,86673.0,0.16547455]
[1765967570123,0.1984,86674.0,86673.0,0.16547455]
[1765967570524,0.31619,86674.0,86673.0,0.16547455]
[1765967570725,0.07364,86674.0,86673.0,0.16547455]
[1765967571722,0.1984,86674.0,86673.0,0.16547455]
[1765967572120,0.07364,86674.0,86673.0,0.16547455]
[1765967572322,0.07264,86674.0,86673.0,0.16747455]
[1765967572636,0.07264,86674.0,86673.0,0.20882752]
[1765967573133,0.31519,86674.0,86673.0,0.20782752]
[1765967573437,0.31519,86674.0,86673.0,0.20982752]
[1765967573633,0.31519,86674.0,86673.0,0.16847455]
[1765967574131,0.07264,86680.0,86679.0,0.1233005]
[1765967574435,0.07264,86680.0,86679.0,0.15463375]
[1765967574622,0.07264,86680.0,86679.0,0.51543375]
[1765967574829,0.07264,86680.0,86679.0,0.5464289]
[1765967575126,0.1974,86680.0,86679.0,0.5464289]
[1765967575433,0.00017307,86682.0,86681.0,0.1185302]
[1765967575624,0.00017307,86682.0,86681.0,0.14986345]
[1765967576330,0.00017307,86682.0,86681.0,0.19116392]
[1765967576935,0.00017307,86682.0,86681.0,0.19216392]
[1765967577132,0.00017307,86682.0,86681.0,0.15086345]
[1765967577442,0.00017307,86682.0,86681.0,0.14986345]
[1765967577741,0.00017307,86682.0,86681.0,0.15286345]
[1765967578043,0.07264,86695.0,86694.0,0.2548985]
[1765967578044,0.31519,86695.0,86694.0,0.2548985]
[1765967578239,0.00230687,86698.0,86694.0,0.2548985]
[1765967578240,0.14506,86707.0,86706.0,0.24336]
[1765967578541,0.26285,86707.0,86706.0,0.2548969]
[1765967579744,0.26285,86707.0,86706.0,0.28619117]
[1765967580042,0.26385,86707.0,86706.0,0.28619117]
[1765967580457,0.0213,86707.0,86706.0,0.28619117]
[1765967580746,0.00017307,86715.0,86714.0,0.2548958]
[1765967581043,0.00017307,86715.0,86714.0,0.6156958]
[1765967581246,0.07264,86723.0,86722.0,0.2548947]
[1765967581454,0.07264,86723.0,86722.0,0.6156947]
[1765967581637,0.31519,86723.0,86722.0,0.6156947]
[1765967581837,0.3267246,86723.0,86722.0,0.60416]
[1765967582044,0.24255,86706.0,86705.0,0.27433382]
[1765967582248,0.24255,86706.0,86705.0,0.28614104]
[1765967583039,0.001,86706.0,86705.0,0.04278104]
[1765967583253,0.0001146,86714.0,86713.0,0.0115359]
[1765967583561,0.0001146,86714.0,86713.0,0.6156959]
[1765967584753,0.0021146,86714.0,86713.0,0.6156959]
[1765967584962,0.2466846,86714.0,86713.0,0.4979059]
[1765967585255,0.2466846,86714.0,86713.0,0.6100659]
[1765967585460,0.2486846,86714.0,86713.0,0.6100659]
[1765967586749,0.2486846,86714.0,86713.0,0.3608]
[1765967588542,0.23166,86710.0,86709.0,0.3608]
[1765967590354,0.23366,86710.0,86709.0,0.3608]
[1765967591159,0.23166,86702.0,86701.0,0.2392075]
[1765967591352,0.11185,86702.0,86701.0,0.2392075]
[1765967591959,0.23166,86702.0,86701.0,0.2392075]
[1765967593149,0.23166,86699.0,86698.0,0.37251087]
[1765967593456,0.23166,86699.0,86698.0,0.48802087]
[1765967593858,0.23166,86699.0,86698.0,0.60018087]
[1765967595459,0.23166,86708.0,86707.0,0.1270467]
[1765967595652,0.2431967,86708.0,86707.0,0.4878467]
[1765967595854,0.2431967,86708.0,86707.0,0.6000067]
[1765967596760,0.2441967,86708.0,86707.0,0.3608]
[1765967596962,0.2431978,86699.0,86698.0,0.47801508]
[1765967597162,0.2431978,86699.0,86698.0,0.60018087]
[1765967597163,0.23166,86699.0,86698.0,0.60018087]
[1765967600558,0.06856,86716.0,86706.0,0.1236966]
[1765967600559,0.2431968,86707.0,86706.0,0.1236966]
[1765967600759,0.2431968,86707.0,86706.0,0.6000066]
[1765967601665,0.2441968,86707.0,86706.0,0.6000066]
[1765967603662,0.2441968,86707.0,86706.0,0.58847]
[1765967606866,0.2441968,86707.0,86706.0,0.22767]
[1765967609370,0.2431968,86707.0,86706.0,0.22767]
[1765967610074,0.2441968,86707.0,86706.0,0.22867]
[1765967610673,0.2441968,86707.0,86706.0,0.22767]
[1765967612179,0.2441968,86707.0,86706.0,0.2392069]
[1765967613763,0.2441968,86707.0,86706.0,0.22767]
[1765967617473,0.2441967,86707.0,86706.0,0.2392069]
[1765967618773,0.2431967,86707.0,86706.0,0.2392069]
[1765967623582,0.2431967,86707.0,86706.0,0.22767]
[1765967629592,0.2431967,86707.0,86698.0,0.00017307]
[1765967629593,0.2907278,86699.0,86698.0,0.00017307]
[1765967630889,0.2927278,86699.0,86698.0,0.00017307]
[1765967631089,0.2937278,86699.0,86698.0,0.27052307]
[1765967631284,0.003,86699.0,86698.0,0.27052307]
[1765967632184,0.06227004,86700.0,86699.0,0.2818878]
[1765967632391,0.08303072,86711.0,86710.0,0.27035]
[1765967632581,0.0001146,86714.0,86713.0,0.27035]
[1765967633281,0.0001146,86714.0,86713.0,0.63115]
[1765967633790,0.27919,86729.0,86728.0,0.2818839]
[1765967633986,0.27919,86729.0,86728.0,0.6426839]
[1765967634990,0.28119,86729.0,86728.0,0.6426839]
[1765967635392,0.28419,86729.0,86728.0,0.6426839]
[1765967635785,0.1439,86729.0,86728.0,0.6426839]
[1765967635987,0.005,86729.0,86728.0,0.6426839]
[1765967636390,0.005,86729.0,86728.0,1.0034839]
[1765967636788,0.28419,86729.0,86728.0,1.5534839]
[1765967636989,0.005,86729.0,86728.0,1.5534839]
[1765967637186,0.28419,86729.0,86728.0,1.5534839]
[1765967637385,0.28419,86729.0,86728.0,0.99195]
[1765967637587,0.2907249,86721.0,86720.0,0.27052295]
[1765967637893,0.2907249,86721.0,86720.0,0.82052295]
[1765967638485,0.2907249,86721.0,86720.0,0.27052295]
[1765967638685,0.002,86721.0,86720.0,0.27052295]
[1765967638886,0.002,86721.0,86720.0,0.82052295]
[1765967639297,0.002,86721.0,86720.0,0.27052295]
[1765967639489,0.2927249,86721.0,86720.0,0.27052295]
[1765967640089,0.2937249,86721.0,86720.0,0.27052295]
[1765967641792,0.2937249,86721.0,86720.0,0.13938295]
[1765967641997,0.28219,86721.0,86720.0,0.27052295]
[1765967642189,0.2937249,86721.0,86720.0,0.27052295]
[1765967643098,0.003,86721.0,86720.0,0.27052295]
[1765967643698,0.1419,86721.0,86720.0,0.27052295]
[1765967644294,0.28219,86721.0,86720.0,0.27052295]
[1765967644596,0.28219,86721.0,86720.0,0.00017295]
[1765967646399,0.2937249,86721.0,86720.0,0.00017295]
[1765967647596,0.2937249,86721.0,86720.0,0.26032295]
[1765967647793,0.003,86721.0,86720.0,0.27185795]
[1765967647993,0.003,86721.0,86720.0,0.63265795]
[1765967648196,0.28621614,86731.0,86730.0,0.3266137]
[1765967648395,0.25676,86737.0,86736.0,0.3469529]
[1765967649589,0.25976,86737.0,86736.0,0.3469529]
[1765967650400,0.26376,86737.0,86736.0,0.3469529]
[1765967651107,0.26376,86737.0,86736.0,0.26015]
[1765967651302,0.25676,86731.0,86730.0,0.31508]
[1765967651499,0.25676,86731.0,86730.0,0.3266137]
[1765967652197,0.26376,86737.0,86736.0,0.2716829]
[1765967652398,0.25976,86737.0,86736.0,0.7077529]
[1765967652702,0.25676,86737.0,86736.0,0.7077529]
[1765967653302,0.25976,86737.0,86736.0,0.7077529]
[1765967653503,0.26176,86737.0,86736.0,0.7077529]
[1765967656894,0.005,86737.0,86736.0,0.7077529]
[1765967657400,0.00230581,86738.0,86737.0,0.26015]
[1765967658305,0.25906581,86738.0,86737.0,0.26015]
[1765967662925,0.00230581,86738.0,86737.0,0.26015]
[1765967663116,0.12387,86754.0,86753.0,0.2716806]
[1765967663315,0.12387,86754.0,86753.0,0.6324806]
[1765967663514,0.28555815,86759.0,86758.0,0.34695]
[1765967664129,0.25676,86759.0,86758.0,0.34695]
[1765967665116,0.25876,86759.0,86758.0,0.34695]
[1765967665525,0.25876,86759.0,86758.0,0.33542]
[1765967665824,0.2682905,86754.0,86753.0,0.48773]
[1765967666033,0.2682905,86754.0,86753.0,0.3608]
[1765967666428,0.2682905,86754.0,86753.0,0.62095]
[1765967666823,0.25676,86754.0,86753.0,0.62095]
[1765967668224,0.25876,86754.0,86753.0,0.62095]
[1765967668628,0.25976,86754.0,86753.0,0.62095]
[1765967671733,0.2712905,86754.0,86753.0,0.62095]
[1765967672531,0.25976,86754.0,86753.0,0.62095]
[1765967673437,0.003,86754.0,86753.0,0.62095]
[1765967674831,0.2441886,86768.0,86767.0,0.2339]
[1765967675131,0.27298376,86768.0,86767.0,0.2339]
[1765967675333,0.27298376,86768.0,86767.0,0.11765]
[1765967675730,0.27298376,86768.0,86767.0,0.2339]
[1765967676327,0.27598376,86768.0,86767.0,0.2339]
[1765967676524,0.27998376,86768.0,86767.0,0.2339]
[1765967677932,0.27598376,86768.0,86767.0,0.2339]
[1765967678128,0.27598376,86768.0,86767.0,0.2349]
[1765967678334,0.27298376,86768.0,86767.0,0.001]
[1765967678534,0.27298376,86768.0,86767.0,0.003]
[1765967679242,0.35601448,86768.0,86767.0,0.003]
[1765967679436,0.27298376,86768.0,86767.0,0.003]
[1765967679744,0.2489292,86764.0,86763.0,0.6128592]
[1765967680339,0.4916479,86774.0,86773.0,0.252058]
[1765967680742,0.55375267,86774.0,86773.0,0.252058]
[1765967680941,0.54222477,86774.0,86773.0,0.252058]
[1765967681150,0.48012,86774.0,86773.0,0.252058]
[1765967681543,0.18142477,86776.0,86775.0,0.2520577]
[1765967681738,0.2374,86776.0,86775.0,0.2520577]
[1765967682341,0.29950477,86778.0,86777.0,0.2520574]
[1765967682552,0.2374,86778.0,86777.0,0.2520574]
[1765967684052,0.2374,86778.0,86777.0,0.11668]
[1765967684249,0.2374,86776.0,86775.0,0.11768]
[1765967684439,0.2374,86776.0,86775.0,0.24153]
[1765967684638,0.2374,86776.0,86775.0,0.24053]
[1765967685849,0.27817043,86781.0,86780.0,0.24053]
[1765967686345,0.2374,86781.0,86780.0,0.24053]
[1765967687647,0.3608,86783.0,86782.0,0.24053]
[1765967687840,0.48012,86783.0,86782.0,0.24053]
[1765967688041,0.5982,86783.0,86782.0,0.24053]
[1765967688248,0.48012,86783.0,86782.0,0.24053]
[1765967688450,0.3608,86783.0,86782.0,0.24053]
[1765967688952,0.48012,86783.0,86782.0,0.24353]
[1765967689151,0.2374,86790.0,86789.0,0.24053]
[1765967689444,0.0115252,86794.0,86786.0,0.07508]
[1765967689645,0.2374,86802.0,86801.0,0.24053]
[1765967689846,0.26566824,86802.0,86801.0,0.24053]
[1765967690638,0.27719234,86802.0,86801.0,0.24053]
[1765967692250,0.27719234,86802.0,86801.0,0.24153]
[1765967692556,0.2489241,86802.0,86801.0,0.24153]
[1765967693255,0.1308441,86802.0,86801.0,0.24153]
[1765967693454,0.11932,86802.0,86801.0,0.24153]
[1765967693661,0.2374,86802.0,86801.0,0.24153]
[1765967693847,0.2251582,86802.0,86801.0,0.60233]
[1765967694743,0.11932,86808.0,86807.0,0.31561]
[1765967694947,0.2489221,86817.0,86816.0,0.24053]
[1765967695951,0.2374,86817.0,86816.0,0.24053]
[1765967696162,0.11932,86817.0,86816.0,0.24053]
[1765967696358,0.2374,86810.0,86809.0,0.60133]
[1765967696558,0.1308426,86814.0,86813.0,0.24053]
[1765967697053,0.0115226,86814.0,86813.0,0.24053]
[1765967697262,0.2489226,86814.0,86813.0,0.24053]
[1765967697757,0.2489226,86814.0,86809.0,0.3608]
[1765967697758,0.248923,86810.0,86809.0,0.3608]
[1765967698054,0.248924,86803.0,86802.0,1.15133]
[1765967698253,0.2489244,86800.0,86793.0,0.62310892]
[1765967698454,0.2489244,86800.0,86793.0,0.3608]
[1765967698455,0.3095844,86800.0,86793.0,0.3608]
[1765967698853,0.0705,86792.0,86790.0,0.09361446]
[1765967699163,0.2489266,86783.0,86782.0,0.21029446]
[1765967699363,0.2489266,86783.0,86782.0,0.11668]
[1765967699665,0.2489266,86783.0,86782.0,0.24053]
[1765967700162,0.2374,86781.0,86780.0,0.3608]
[1765967700373,0.2489277,86775.0,86774.0,0.00017285]
[1765967700671,0.2489277,86775.0,86752.0,0.07508]
[1765967700672,0.3086686,86768.0,86765.0,0.09361446]
[1765967700974,0.3086686,86768.0,86758.0,0.18722892]
[1765967701369,0.2489298,86759.0,86758.0,0.09361446]
[1765967701565,0.06955,86760.0,86755.0,0.3608]
[1765967701566,0.2489302,86756.0,86755.0,0.3608]
[1765967701871,0.2489302,86756.0,86755.0,0.60133]
[1765967702568,0.24903348,86756.0,86755.0,0.60133]
[1765967702968,0.00010328,86756.0,86755.0,0.60133]
[1765967703167,0.00017285,86764.0,86755.0,0.60133]
[1765967703168,0.00017285,86764.0,86763.0,0.2520593]
[1765967703372,0.09455622,86792.0,86763.0,0.2520593]
[1765967703373,0.26064,86779.0,86778.0,0.31114]
[1765967703577,0.2489264,86785.0,86784.0,0.24053]
[1765967703873,0.2374,86785.0,86784.0,0.24053]
[1765967704075,0.2374,86777.0,86776.0,0.3608]
[1765967704280,0.2374,86777.0,86776.0,0.59381]
[1765967704481,0.10806,86782.0,86781.0,0.11633]
[1765967704669,0.11975854,86785.0,86784.0,0.22395]
[1765967704864,0.12175854,86785.0,86784.0,0.22395]
[1765967705277,0.23669854,86785.0,86784.0,0.22395]
[1765967706174,0.23669854,86785.0,86784.0,0.22595]
[1765967706577,0.23469854,86785.0,86784.0,0.22595]
[1765967707586,0.23469854,86785.0,86784.0,0.22395]
[1765967707883,0.23469854,86785.0,86784.0,0.22595]
[1765967708276,0.23469854,86785.0,86784.0,0.22395]
[1765967709974,0.2979285,86769.0,86768.0,0.36097285]
[1765967710281,0.2345285,86769.0,86768.0,0.00017285]
[1765967710472,0.2345268,86782.0,86781.0,0.22395]
[1765967710681,0.223,86782.0,86781.0,0.2354769]
[1765967710979,0.223,86782.0,86781.0,0.22395]
[1765967712082,0.223,86782.0,86781.0,0.22495]
[1765967713086,0.223,86782.0,86781.0,0.22395]
[1765967713287,0.223,86782.0,86781.0,0.22495]
[1765967715379,0.00017214,86785.0,86784.0,0.22395]
[1765967717383,0.1195856,86791.0,86790.0,0.2354757]
[1765967717588,0.2345256,86791.0,86790.0,0.58475]
[1765967719490,0.2345266,86783.0,86782.0,0.22412285]
[1765967719989,0.223,86783.0,86782.0,0.22412285]
[1765967720195,0.0115263,86786.0,86785.0,0.22395]
[1765967720196,0.1195863,86786.0,86785.0,0.22395]
[1765967720389,0.001,86791.0,86784.0,0.06539]
[1765967720390,0.001,86791.0,86790.0,0.2354757]
[1765967720583,0.5953244,86800.0,86799.0,0.22395]
[1765967720782,0.5838,86800.0,86799.0,0.22395]
[1765967720978,0.06210477,86806.0,86805.0,0.22395]
[1765967721187,0.3608,86807.0,86806.0,0.2354736]
[1765967721582,0.64328,86828.0,86813.0,0.2354726]
[1765967721583,0.17016477,86814.0,86813.0,0.2354726]
[1765967721789,0.12188568,86818.0,86817.0,0.22395]
[1765967721983,0.00230368,86818.0,86817.0,0.22395]
[1765967722192,0.22530368,86818.0,86817.0,0.10762]
[1765967722391,0.00230368,86818.0,86817.0,0.22395]
[1765967722785,0.22530368,86818.0,86817.0,0.10762]
[1765967722986,0.22530368,86818.0,86817.0,0.22395]
[1765967723184,0.00330368,86818.0,86817.0,0.22395]
[1765967726493,0.3608,86836.0,86834.0,0.0115197]
[1765967726695,0.3723197,86836.0,86835.0,0.22395]
[1765967727301,0.5953197,86836.0,86835.0,0.22395]
[1765967727798,0.2345208,86827.0,86826.0,0.32937311]
[1765967727999,0.2345208,86827.0,86826.0,0.00017274]
[1765967728189,0.10806,86830.0,86829.0,0.22395]
[1765967728393,0.10806,86830.0,86826.0,0.00017274]
[1765967728394,0.01152,86833.0,86832.0,0.28934]
[1765967728589,0.3648,86836.0,86835.0,0.22395]
[1765967729195,0.3618,86836.0,86835.0,0.22395]
[1765967730301,0.3608,86836.0,86835.0,0.22395]
[1765967730498,0.223,86835.0,86834.0,0.0115198]
[1765967730702,0.223,86835.0,86834.0,0.1191398]
[1765967730903,0.223,86835.0,86834.0,0.2354698]
[1765967731704,0.224,86835.0,86834.0,0.2354698]
[1765967732103,0.223,86827.0,86826.0,0.38981065]
[1765967732300,0.5838,86856.0,86855.0,0.10762]
[1765967732503,0.62388425,86856.0,86855.0,0.10762]
[1765967732703,0.223,86849.0,86848.0,0.28934]
[1765967733112,0.10806,86849.0,86848.0,0.28934]
[1765967733310,0.5838,86856.0,86855.0,0.22395]
[1765967733607,0.223,86856.0,86855.0,0.22395]
[1765967734807,0.00230262,86858.0,86851.0,0.3608]
[1765967734994,0.00230262,86858.0,86857.0,0.20113]
[1765967735195,0.10961262,86858.0,86857.0,0.20113]
[1765967735794,0.00230262,86858.0,86857.0,0.20113]
[1765967735994,0.00330262,86858.0,86857.0,0.20113]
[1765967736694,0.21393262,86858.0,86857.0,0.20413]
[1765967737302,0.00330262,86858.0,86857.0,0.20113]
[1765967737507,0.00230262,86858.0,86857.0,0.20413]
[1765967737710,0.00230262,86858.0,86857.0,0.20713]
[1765967739608,0.20275,86873.0,86872.0,0.25854]
[1765967739794,0.2142647,86873.0,86872.0,0.19647]
[1765967740204,0.2142647,86873.0,86872.0,0.25854]
[1765967741000,0.2142652,86869.0,86868.0,0.64809274]
[1765967741399,0.2142652,86869.0,86868.0,0.74664274]
[1765967741599,0.2142652,86869.0,86868.0,0.19664274]
[1765967743500,0.2142652,86869.0,86868.0,0.00017274]
[1765967744815,0.2142685,86844.0,86843.0,0.55727]
[1765967745509,0.2142685,86844.0,86843.0,0.3608]
[1765967745711,0.3723185,86844.0,86835.0,0.00017274]
[1765967745906,0.20275,86836.0,86835.0,0.00017274]
[1765967746098,0.56355,86836.0,86835.0,0.00017274]
[1765967746302,0.2142716,86821.0,86820.0,0.15416701]
[1765967746505,0.0115205,86829.0,86811.0,0.19647]
[1765967746506,0.2142728,86812.0,86811.0,0.19647]
[1765967746705,0.214273,86810.0,86809.0,0.3608]
[1765967747404,0.214273,86810.0,86809.0,0.45872]
[1765967747805,0.00017274,86818.0,86813.0,0.19647]
[1765967747806,0.10102,86814.0,86813.0,0.19647]
[1765967748010,0.0115221,86817.0,86816.0,0.19647]
[1765967748207,0.10102,86817.0,86816.0,0.55727]
[1765967748409,0.00017274,86818.0,86817.0,0.2079921]
[1765967749510,0.00017274,86818.0,86817.0,0.19647]
[1765967749717,0.2142721,86817.0,86816.0,0.3608]
[1765967750916,0.2142721,86817.0,86816.0,0.3628]
[1765967751113,0.00017274,86818.0,86816.0,0.55927]
[1765967751314,0.00017274,86818.0,86817.0,0.19647]
[1765967751504,0.5750697,86836.0,86835.0,0.19647]
[1765967752820,0.2142697,86836.0,86835.0,0.19647]
[1765967753924,0.2142697,86836.0,86835.0,0.09992]
[1765967754304,0.2142697,86836.0,86835.0,0.002]
[1765967754715,0.2142707,86828.0,86827.0,0.00017274]
[1765967756013,0.2142719,86819.0,86818.0,0.00230368]
[1765967756226,0.10102,86825.0,86824.0,0.2079911]
[1765967756410,0.20275,86825.0,86824.0,0.19647]
[1765967757823,0.20275,86825.0,86824.0,0.19847]
[1765967758514,0.20275,86825.0,86824.0,0.20047]
[1765967759206,0.20275,86826.0,86825.0,0.0115211]
[1765967759405,0.0115193,86839.0,86825.0,0.0115211]
[1765967759406,0.2142704,86830.0,86829.0,0.19647]
[1765967761017,0.2142704,86830.0,86824.0,0.09855]
[1765967761018,0.20275,86825.0,86824.0,0.09855]
[1765967761720,0.20275,86825.0,86824.0,0.19647]
[1765967761906,0.20275,86825.0,86820.0,0.16568871]
[1765967762114,0.20275,86819.0,86818.0,0.00230368]
[1765967763214,0.20275,86819.0,86818.0,0.00430368]
[1765967763720,0.20275,86819.0,86816.0,0.00017274]
[1765967763927,0.214274,86803.0,86800.0,0.0115244]
[1765967765024,0.212215,86795.0,86794.0,0.00017274]
[1765967766021,0.209215,86795.0,86794.0,0.00017274]
[1765967767912,0.2122165,86784.0,86783.0,0.3608]
[1765967769022,0.20069,86784.0,86783.0,0.55016]
[1765967770319,0.20069,86784.0,86783.0,0.55316]
[1765967772016,0.72256,86786.0,86785.0,0.18936]
[1765967772216,0.82384,86786.0,86785.0,0.18936]
[1765967772510,0.92325,86786.0,86785.0,0.18936]
[1765967773119,0.92325,86786.0,86785.0,0.19036]
[1765967773826,0.92325,86786.0,86785.0,0.19136]
[1765967774137,0.92325,86786.0,86785.0,0.09676]
[1765967774317,0.92325,86786.0,86785.0,0.001]
[1765967774626,0.92325,86786.0,86785.0,0.19136]
[1765967775317,0.92325,86786.0,86785.0,0.19036]
[1765967775513,0.92325,86786.0,86785.0,0.19136]
[1765967776024,0.10145284,86792.0,86791.0,0.18936]
[1765967776230,0.00017284,86792.0,86791.0,0.18936]
[1765967776530,0.00017284,86792.0,86791.0,0.55016]
[1765967777320,0.00017284,86792.0,86791.0,0.58102104]
[1765967777733,0.70313,86810.0,86809.0,0.18936]
[1765967777935,0.34233,86810.0,86809.0,0.18936]
[1765967778432,0.353853,86810.0,86809.0,0.18936]
[1765967779329,0.353853,86810.0,86809.0,0.55116]
[1765967779532,0.14164,86810.0,86809.0,0.55116]
[1765967779722,0.14164,86810.0,86809.0,0.55216]
[1765967780435,0.24292,86810.0,86809.0,0.55216]
[1765967780625,0.14164,86810.0,86809.0,0.55216]
[1765967781024,0.11297484,86818.0,86817.0,0.18936]
[1765967781225,0.01169484,86818.0,86817.0,0.18936]
[1765967781523,0.00017284,86818.0,86817.0,0.18936]
[1765967784126,0.20086284,86818.0,86817.0,0.18936]
[1765967784833,0.00017284,86818.0,86817.0,0.18936]
[1765967791745,0.00017284,86818.0,86817.0,0.2008821]
[1765967793134,0.01169484,86818.0,86817.0,0.2008821]
[1765967793441,0.00017284,86818.0,86817.0,0.2008821]
[1765967794141,0.20086284,86818.0,86817.0,0.18936]
[1765967794342,0.20086284,86818.0,86817.0,0.2008821]
[1765967794532,0.20086284,86818.0,86817.0,0.2038821]
[1765967794945,0.20086284,86818.0,86817.0,0.2058821]
[1765967795242,0.20086284,86818.0,86817.0,0.005]
[1765967795447,0.20086284,86818.0,86817.0,0.003]
[1765967796146,0.20086284,86818.0,86817.0,0.001]
[1765967796440,0.20086284,86818.0,86817.0,0.08806]
[1765967796743,0.20086284,86818.0,86817.0,0.17407]
[1765967798140,0.20086284,86818.0,86817.0,0.17207]
[1765967798336,0.20086284,86818.0,86817.0,0.17407]
[1765967798748,0.20086284,86818.0,86817.0,0.003]
[1765967798943,0.20086284,86818.0,86817.0,0.001]
[1765967799142,0.20086284,86818.0,86817.0,0.003]
[1765967799846,0.190673,86810.0,86809.0,0.53634]
[1765967800741,0.190673,86810.0,86809.0,0.5478632]
[1765967802135,0.190673,86810.0,86809.0,0.53834]
[1765967802544,0.190673,86810.0,86809.0,0.53634]
[1765967802746,0.190673,86810.0,86809.0,0.53834]
[1765967803550,0.190673,86810.0,86809.0,0.54034]
[1765967806247,0.17915,86810.0,86809.0,0.54034]
[1765967806843,0.27124075,86810.0,86809.0,0.004]
[1765967807347,0.33335685,86810.0,86809.0,0.004]
[1765967807553,0.27124075,86810.0,86809.0,0.004]
[1765967807736,0.27124075,86810.0,86809.0,0.09368]
[1765967808848,0.17915,86810.0,86809.0,0.17654]
[1765967809056,0.17915,86810.0,86809.0,0.17754]
[1765967809549,0.17915,86810.0,86809.0,0.17654]
[1765967809757,0.17915,86810.0,86809.0,0.17854]
[1765967810551,0.17915,86810.0,86809.0,0.17754]
[1765967811055,0.17915,86810.0,86809.0,0.17654]
[1765967811252,0.17915,86810.0,86809.0,0.17754]
[1765967811557,0.17915,86810.0,86809.0,0.002]
[1765967811853,0.53995,86810.0,86809.0,0.001]
[1765967812053,0.53995,86810.0,86809.0,0.003]
[1765967812857,0.53995,86810.0,86809.0,0.002]
[1765967812858,0.63287031,86810.0,86809.0,0.002]
[1765967813749,0.27207031,86810.0,86809.0,0.09168]
[1765967814050,0.27207031,86810.0,86809.0,0.17754]
[1765967816940,0.17915,86810.0,86809.0,0.17754]
[1765967818155,0.09114,86810.0,86809.0,0.17754]
[1765967818553,0.17915,86810.0,86809.0,0.17754]
[1765967819741,0.17915,86810.0,86809.0,0.002]
[1765967822249,0.17915,86810.0,86801.0,0.00017284]
[1765967822250,0.1906741,86802.0,86801.0,0.00017284]
[1765967822450,0.1906761,86787.0,86786.0,0.22822]
[1765967822659,0.1906761,86787.0,86786.0,0.25921501]
[1765967822847,0.17915,86785.0,86784.0,0.3608]
[1765967823250,0.17915,86785.0,86784.0,0.45048]
[1765967823847,0.17715,86785.0,86784.0,0.45048]
[1765967824260,0.17715,86785.0,86784.0,0.3608]
[1765967824462,0.17715,86785.0,86784.0,0.3628]
[1765967824757,0.17715,86785.0,86784.0,0.45248]
[1765967825057,0.17715,86785.0,86784.0,0.53084]
[1765967825258,0.17715,86785.0,86784.0,0.53284]
[1765967825448,0.17715,86785.0,86784.0,0.004]
[1765967825647,0.89923,86785.0,86784.0,0.004]
[1765967833068,0.89923,86785.0,86784.0,0.16403]
[1765967833264,0.08914,86785.0,86784.0,0.16403]
[1765967833466,0.722,86786.0,86785.0,0.1715564]
[1765967833778,0.80358,86786.0,86785.0,0.1715564]
[1765967834480,0.80358,86786.0,86785.0,0.5323564]
[1765967834674,0.80358,86786.0,86785.0,0.5343564]
[1765967834877,0.8817,86786.0,86785.0,0.5343564]
[1765967835573,0.8817,86786.0,86785.0,0.5323564]
[1765967835769,0.8817,86786.0,86785.0,0.5343564]
[1765967837985,0.8817,86786.0,86785.0,0.5323564]
[1765967838278,0.8817,86786.0,86785.0,0.5343564]
[1765967838984,0.8817,86786.0,86785.0,0.52283]
[1765967839182,0.8817,86786.0,86785.0,0.3628]
[1765967839386,0.92327,86786.0,86785.0,0.3628]
[1765967839884,0.92327,86786.0,86785.0,0.002]
[1765967840286,0.2098372,86779.0,86778.0,0.00230474]
[1765967840482,0.2078372,86779.0,86778.0,0.00230474]
[1765967841478,0.2078372,86779.0,86778.0,0.00630474]
[1765967842075,0.1712274,86777.0,86770.0,8.72e-05]
[1765967842375,0.1712282,86771.0,86770.0,8.72e-05]